fUSD/lending_fUSD_20240916
["ID","MTS","AMOUNT","RATE_DAILY","PERIOD"]
[338267843,1726465840853,-151.0,0.00014941,2]
[338267844,1726465840863,-151.0,0.00014941,2]
[338267845,1726465840872,-151.0,0.00014941,2]
[338267846,1726465840882,-151.0,0.00014941,2]
[338267847,1726465840891,-151.0,0.00014941,2]
[338267848,1726465840900,-291.47234,0.00014941,2]
[338267849,1726465840913,-500.0,0.00014941,2]
[338267850,1726465840923,-500.0,0.00014941,2]
[338267851,1726465840932,-500.0,0.00014941,2]
[338267852,1726465840941,-500.0,0.00014941,2]
[338267853,1726465840951,-151.0,0.00014941,2]
[338267854,1726465840960,-151.0,0.00014941,2]
[338267855,1726465840970,-151.0,0.00014941,2]
[338267856,1726465840979,-527.5,0.00014941,2]
[338267857,1726465840989,-500.0,0.00014941,2]
[338267858,1726465840998,-500.0,0.00014941,2]
[338267859,1726465841008,-500.0,0.00014941,2]
[338267860,1726465841017,-618.916932,0.00014941,2]
[338267861,1726465841026,-500.0,0.00014941,2]
[338267862,1726465841036,-151.0,0.00014941,2]
[338267863,1726465841046,-288.737332,0.00014941,2]
[338267864,1726465841055,-500.0,0.00014941,2]
[338267865,1726465841065,-2138.09,0.00014941,2]
[338267866,1726465841074,-3041.61,0.00014941,2]
[338267867,1726465841083,-825.97,0.00014941,2]
[338267868,1726465841092,-2673.14,0.00014941,2]
[338267869,1726465841102,-500.0,0.00014941,2]
[338267870,1726465841110,-500.0,0.00014941,2]
[338267871,1726465841120,-2002.31,0.00014941,2]
[338267872,1726465841129,-1064.42,0.00014941,2]
[338267873,1726465841138,-500.0,0.00014941,2]
[338267874,1726465841147,-500.0,0.00014941,2]
[338267875,1726465841157,-164.471325,0.00014941,2]
[338267876,1726465841166,-982.68,0.00014941,2]
[338267877,1726465841175,-1321.324936,0.00014941,2]
[338267878,1726465841184,-1321.324936,0.00014941,2]
[338267879,1726465841194,-1321.324936,0.00014941,2]
[338267880,1726465841203,-1321.324936,0.00014941,2]
[338267881,1726465841212,-500.0,0.00014941,2]
[338267882,1726465841222,-500.0,0.00014941,2]
[338267883,1726465841232,-500.0,0.00014941,2]
[338267884,1726465841241,-1222.22,0.00014941,2]
[338267885,1726465841251,-5388.34,0.00014941,2]
[338267886,1726465841260,-4823.3,0.00014941,2]
[338267887,1726465841269,-519.39,0.00014941,2]
[338267888,1726465841279,-594.07,0.00014941,2]
[338267889,1726465841288,-1544.69,0.00014941,2]
[338267890,1726465841298,-500.0,0.00014941,2]
[338267891,1726465841307,-774.53,0.00014941,2]
[338267892,1726465841317,-500.0,0.00014941,2]
[338267893,1726465841327,-500.0,0.00014941,2]
[338267894,1726465841336,-500.0,0.00014941,2]
[338267895,1726465841346,-500.0,0.00014941,2]
[338267896,1726465841356,-1074.86,0.00014941,2]
[338267897,1726465841365,-500.0,0.00014941,2]
[338267898,1726465841376,-1736.18,0.00014941,2]
[338267899,1726465841385,-500.0,0.00014941,2]
[338267900,1726465841395,-500.0,0.00014941,2]
[338267901,1726465841404,-1331.41,0.00014941,2]
[338267902,1726465841414,-402.23788455,0.00014941,2]
[338267903,1726465841423,-2881.38,0.00014941,2]
[338267904,1726465841433,-537.78092039,0.00014941,2]
[338267905,1726465841443,-500.0,0.00014941,2]
[338267906,1726465841453,-505.15809209,0.00014941,2]
[338267907,1726465841462,-500.0,0.00014941,2]
[338267908,1726465841472,-506.04408753,0.00014941,2]
[338267909,1726465841484,-500.0,0.00014941,2]
[338267910,1726465841493,-500.0,0.00014941,2]
[338267911,1726465841503,-500.0,0.00014941,2]
[338267912,1726465841512,-500.0,0.00014941,2]
[338267913,1726465841521,-500.0,0.00014941,2]
[338267914,1726465841531,-566.55256732,0.00014941,2]
[338267915,1726465841540,-1118.71,0.00014941,2]
[338267916,1726465841550,-151.0,0.00014941,2]
[338267917,1726465841559,-151.0,0.00014941,2]
[338267918,1726465841568,-166.645058,0.00014941,2]
[338267919,1726465841577,-218.62752,0.00014941,2]
[338267920,1726465841587,-218.62752,0.00014941,2]
[338267921,1726465841597,-218.62752,0.00014941,2]
[338267922,1726465841607,-188.31836605,0.00014941,2]
[338267923,1726465841617,-218.62752,0.00014941,2]
[338267924,1726465841628,-218.62752,0.00014941,2]
[338267925,1726465841638,-218.62752,0.00014941,2]
[338267926,1726465841648,-151.0,0.00014941,2]
[338267927,1726465841658,-278.690098,0.00014941,2]
[338267928,1726465841667,-500.0,0.00014941,2]
[338267929,1726465841677,-543.23,0.00014941,2]
[338267930,1726465841687,-500.0,0.00014941,2]
[338267931,1726465841696,-500.0,0.00014941,2]
[338267932,1726465841706,-500.0,0.00014941,2]
[338267933,1726465841715,-500.0,0.00014941,2]
[338267934,1726465841725,-500.0,0.00014941,2]
[338267935,1726465841735,-500.0,0.00014941,2]
[338267936,1726465841745,-500.0,0.00014941,2]
[338267937,1726465841755,-500.0,0.00014941,2]
[338267938,1726465841765,-245.17438098,0.00014941,2]
[338267939,1726465841774,-1051.01,0.00014941,2]
[338267940,1726465841784,-500.0,0.00014941,2]
[338267941,1726465841793,-500.0,0.00014941,2]
[338267942,1726465841802,-190.4880409,0.00014941,2]
[338267943,1726465841811,-515.71839202,0.00014941,2]
[338267944,1726465841821,-9432.05439718,0.00014941,7]
[338267945,1726465841830,-55898.1244499,0.00014941,7]
[338267946,1726465841839,-12033.45297794,0.00014955,2]
[338267947,1726465841988,-771.26757877,0.00014955,2]
[338267948,1726465842003,-648.60993246,0.00014955,2]
[338267949,1726465842014,-646.08003166,0.00014955,2]
[338267950,1726465842025,-755.95142476,0.00014955,2]
[338267951,1726465842036,-289.95504463,0.00014955,2]
[338267952,1726465842047,-442.25,0.00014955,2]
[338267953,1726465842062,-1700.0,0.00014955,2]
[338267954,1726465842073,-897.58477711,0.00014955,2]
[338267955,1726465842084,-2756.36521699,0.00014955,2]
[338267962,1726465842546,-370.907,0.00014955,2]
[338267963,1726465842566,-2826.0,0.00014955,2]
[338267964,1726465842586,-9484.43152879,0.00014955,2]
[338267965,1726465842678,-447.3484677,0.00014955,2]
[338267966,1726465842689,-612.08627916,0.00014955,2]
[338267977,1726465845599,-302.17362782,0.00014899,2]
[338267982,1726465912804,197.98988282,0.00011664,2]
[338267983,1726466008859,159.04,0.00010959,2]
[338267984,1726466020615,373.09,0.00011454,2]
[338267988,1726466626056,354.43,0.00011911,2]
[338267989,1726466687394,152.27,0.00010959,2]
[338268016,1726467031768,-150.0,0.00013488,2]
[338268017,1726467031778,-150.0,0.00013488,2]
[338268018,1726467031787,-287.84,0.00013671,2]
[338268019,1726467031799,-1383.46032261,0.00013671,2]
[338268020,1726467031808,-602.82893767,0.00013671,2]
[338268021,1726467031818,-150.06,0.00013699,2]
[338268022,1726467031827,-300.0,0.00013806,2]
[338268023,1726467031836,-10168.67,0.00013807,2]
[338268024,1726467031845,-159.68,0.00013822,2]
[338268025,1726467031856,-171.86,0.00013829,2]
[338268029,1726467032048,-1000.0,0.00013837,2]
[338268031,1726467032059,-250.0,0.00013892,2]
[338268032,1726467032068,-1318.07,0.00013892,2]
[338268033,1726467032078,-1055.01,0.00013892,2]
[338268034,1726467032086,-165.52,0.000141,2]
[338268035,1726467032095,-516.63,0.00014175,2]
[338268036,1726467032105,-354.43,0.00014175,2]
[338268037,1726467032114,-508.02,0.00014192,2]
[338268038,1726467032124,-150.0,0.00014395,2]
[338268039,1726467032134,-4000.0,0.00014463,7]
[338268040,1726467032143,-150.06,0.00014564,2]
[338268041,1726467032152,-150.0,0.00014583,2]
[338268042,1726467032162,-2200.4,0.00014584,2]
[338268043,1726467032171,-500.0,0.0001468,2]
[338268044,1726467032180,-346.371,0.00014684,2]
[338268045,1726467032189,-500.0,0.00014688,2]
[338268046,1726467032198,-21282.9882,0.00014694,2]
[338268047,1726467032207,-500.0,0.00014697,2]
[338268048,1726467032217,-500.0,0.00014706,2]
[338268049,1726467032226,-500.0,0.00014715,2]
[338268050,1726467032235,-474.416,0.00014719,2]
[338268051,1726467032244,-175.909,0.00014719,2]
[338268052,1726467032254,-500.0,0.00014724,2]
[338268053,1726467032263,-500.0,0.00014732,2]
[338268054,1726467032273,-500.0,0.00014741,2]
[338268055,1726467032282,-500.0,0.0001475,2]
[338268056,1726467032291,-576.0,0.00014751,2]
[338268057,1726467032301,-500.0,0.00014759,2]
[338268058,1726467032310,-5800.0,0.0001476,2]
[338268059,1726467032320,-1016.9476,0.00014767,2]
[338268060,1726467032329,-500.0,0.00014768,2]
[338268061,1726467032339,-5800.0,0.00014769,2]
[338268062,1726467032353,-500.0,0.00014776,2]
[338268063,1726467032363,-5800.0,0.00014777,2]
[338268064,1726467032373,-500.0,0.00014785,2]
[338268065,1726467032382,-5800.0,0.00014785,2]
[338268066,1726467032391,-5800.0,0.00014794,2]
[338268067,1726467032401,-500.0,0.00014794,2]
[338268068,1726467032410,-500.0,0.00014794,2]
[338268069,1726467032420,-500.0,0.00014794,2]
[338268070,1726467032434,-500.0,0.00014794,2]
[338268071,1726467032443,-500.0,0.00014794,2]
[338268072,1726467032453,-500.0,0.00014794,2]
[338268073,1726467032463,-3447.58940249,0.00014794,2]
[338268074,1726467032473,-151.764564,0.00014795,2]
[338268075,1726467032483,-205.67917086,0.00014799,2]
[338268076,1726467032492,-3000.0,0.000148,2]
[338268077,1726467032502,-3497.970885,0.000148,2]
[338268078,1726467032512,-205.67917082,0.0001481,2]
[338268079,1726467032521,-205.67917082,0.00014821,2]
[338268080,1726467032531,-205.67917082,0.00014833,2]
[338268081,1726467032540,-41649.0995,0.00014841,2]
[338268082,1726467032550,-1963.46255135,0.00014841,2]
[338268091,1726467037792,-2882.48404865,0.00014841,2]
[338268092,1726467037801,-205.67917082,0.00014844,2]
[338268093,1726467037811,-619.1846,0.00014855,2]
[338268094,1726467037820,-205.67917082,0.00014855,2]
[338268095,1726467037829,-205.67917082,0.00014866,2]
[338268096,1726467037839,-205.67917082,0.00014878,2]
[338268097,1726467037848,-1290.4056,0.00014879,2]
[338268098,1726467037857,-563.861,0.00014879,2]
[338268099,1726467037866,-185.71939874,0.0001488,2]
[338268100,1726467037875,-2379.91505313,0.00014886,2]
[338268101,1726467037884,-205.67917082,0.00014889,2]
[338268102,1726467037892,-309.97984647,0.00014899,2]
[338268103,1726467037901,-309.97984646,0.000149,2]
[338268104,1726467037910,-205.67917082,0.000149,2]
[338268105,1726467037919,-309.97984646,0.000149,2]
[338268106,1726467037928,-500.0,0.00014941,2]
[338268107,1726467037937,-555.33115279,0.00014941,2]
[338268108,1726467037947,-500.0,0.00014941,2]
[338268109,1726467037956,-500.0,0.00014941,2]
[338268110,1726467037966,-189.82262388,0.00014941,2]
[338268111,1726467037975,-1000.0,0.00014941,2]
[338268112,1726467037984,-1000.0,0.00014941,2]
[338268113,1726467037993,-1000.0,0.00014941,2]
[338268114,1726467038003,-1000.0,0.00014941,2]
[338268115,1726467038013,-1000.0,0.00014941,2]
[338268116,1726467038023,-1000.0,0.00014941,2]
[338268117,1726467038032,-1000.0,0.00014941,2]
[338268118,1726467038042,-1000.0,0.00014941,2]
[338268119,1726467038051,-1000.0,0.00014941,2]
[338268120,1726467038061,-1000.0,0.00014941,2]
[338268121,1726467038071,-1000.0,0.00014941,2]
[338268122,1726467038080,-1000.0,0.00014941,2]
[338268123,1726467038088,-1000.0,0.00014941,2]
[338268124,1726467038098,-1059.0,0.00014941,2]
[338268125,1726467038107,-1654.60096354,0.00014949,2]
[338268126,1726467038119,-3955.01642289,0.00014949,2]
[338268127,1726467038130,-307.07755376,0.00014949,2]
[338268128,1726467038141,-36.66111511,0.00014949,2]
[338268129,1726467038150,-915.0930724,0.00014949,2]
[338268130,1726467038159,-152.0,0.0001495,3]
[338268131,1726467038169,-150.01,0.00014954,2]
[338268132,1726467038178,-12890.86841153,0.00014955,2]
[338268133,1726467038187,-500.82399847,0.00014955,2]
[338268134,1726467038197,-1101.77151,0.00014955,2]
[338268135,1726467038206,-1531.86918544,0.00014956,2]
[338268136,1726467038218,-421.7204241,0.00014959,2]
[338268137,1726467038227,-500.0,0.00014969,2]
[338268138,1726467038236,-590.53,0.00014969,2]
[338268139,1726467038245,-500.0,0.00014969,2]
[338268141,1726467038254,-500.0,0.00014969,2]
[338268143,1726467038263,-292.76020745,0.00014969,2]
[338268145,1726467038275,-207.23979255,0.00014969,2]
[338268147,1726467038283,-500.0,0.00014969,2]
[338268148,1726467038292,-500.0,0.00014969,2]
[338268150,1726467038302,-500.0,0.00014969,2]
[338268152,1726467038311,-500.0,0.00014969,2]
[338268154,1726467038321,-500.0,0.00014969,2]
[338268156,1726467038330,-500.0,0.00014969,2]
[338268158,1726467038339,-500.0,0.00014969,2]
[338268160,1726467038349,-154.33924984,0.00014969,2]
[338268163,1726467038363,-345.66075016,0.00014969,2]
[338268165,1726467038372,-420.81362584,0.00014969,2]
[338268167,1726467038384,-79.18637416,0.00014969,2]
[338268169,1726467038394,-975.72,0.00014969,2]
[338268171,1726467038403,-900.79,0.00014969,2]
[338268173,1726467038412,-4421.36,0.00014969,2]
[338268175,1726467038421,-500.0,0.00014969,2]
[338268177,1726467038431,-500.0,0.00014969,2]
[338268179,1726467038440,-500.0,0.00014969,2]
[338268181,1726467038449,-500.0,0.00014969,2]
[338268182,1726467038458,-500.0,0.00014969,2]
[338268184,1726467038468,-4939.31,0.00014969,2]
[338268186,1726467038478,-1415.96,0.00014969,2]
[338268188,1726467038486,-500.0,0.00014969,2]
[338268190,1726467038496,-709.98,0.00014969,2]
[338268192,1726467038505,-500.0,0.00014969,2]
[338268194,1726467038515,-500.0,0.00014969,2]
[338268196,1726467038524,-565.69973135,0.00014969,2]
[338268198,1726467038533,-1591.5,0.00014969,2]
[338268200,1726467038543,-500.0,0.00014969,2]
[338268202,1726467038552,-500.0,0.00014969,2]
[338268204,1726467038562,-500.0,0.00014969,2]
[338268206,1726467038573,-500.0,0.00014969,2]
[338268208,1726467038582,-433.77108302,0.00014969,2]
[338268210,1726467038594,-786.68891698,0.00014969,2]
[338268212,1726467038604,-2641.26,0.00014969,2]
[338268214,1726467038613,-500.0,0.00014969,2]
[338268216,1726467038622,-500.0,0.00014969,2]
[338268218,1726467038632,-421.31859995,0.00014969,2]
[338268220,1726467038641,-500.0,0.00014969,2]
[338268222,1726467038651,-500.0,0.00014969,2]
[338268224,1726467038660,-614.01403456,0.00014969,2]
[338268227,1726467038672,-411.46596544,0.00014969,2]
[338268229,1726467038681,-500.0,0.00014969,2]
[338268230,1726467038690,-500.0,0.00014969,2]
[338268232,1726467038700,-500.0,0.00014969,2]
[338268234,1726467038710,-500.0,0.00014969,2]
[338268236,1726467038720,-500.0,0.00014969,2]
[338268238,1726467038729,-500.0,0.00014969,2]
[338268240,1726467038738,-500.0,0.00014969,2]
[338268242,1726467038748,-500.0,0.00014969,2]
[338268244,1726467038757,-151.0,0.0001497,2]
[338268246,1726467038766,-151.0,0.0001497,2]
[338268248,1726467038776,-151.0,0.0001497,2]
[338268250,1726467038785,-151.0,0.0001497,2]
[338268252,1726467038795,-151.0,0.0001497,2]
[338268254,1726467038804,-151.0,0.0001497,2]
[338268256,1726467038813,-151.0,0.0001497,2]
[338268258,1726467038822,-151.0,0.0001497,2]
[338268260,1726467038831,-151.0,0.0001497,2]
[338268262,1726467038840,-151.0,0.0001497,2]
[338268264,1726467038849,-151.0,0.0001497,2]
[338268266,1726467038859,-154.553583,0.0001497,2]
[338268268,1726467038868,-131.1054977,0.0001497,2]
[338268271,1726467038883,-126.6907393,0.0001497,2]
[338268273,1726467038893,-257.796237,0.0001497,2]
[338268275,1726467038902,-151.0,0.0001497,2]
[338268277,1726467038912,-39.5130237,0.0001497,2]
[338268370,1726467039708,-111.4869763,0.0001497,2]
[338268373,1726467039718,-151.0,0.0001497,2]
[338268375,1726467039729,-151.0,0.0001497,2]
[338268378,1726467039739,-101.80007822,0.0001497,2]
[338268382,1726467039750,-49.19992178,0.0001497,2]
[338268384,1726467039759,-151.0,0.0001497,2]
[338268387,1726467039768,-151.0,0.0001497,2]
[338268390,1726467039778,-151.0,0.0001497,2]
[338268393,1726467039787,-151.0,0.0001497,2]
[338268395,1726467039796,-151.0,0.0001497,2]
[338268397,1726467039806,-152.389454,0.0001497,2]
[338268399,1726467039815,-151.0,0.0001497,2]
[338268401,1726467039824,-27.11850045,0.0001497,3]
[338268403,1726467039836,-5585.94556825,0.0001497,3]
[338268405,1726467039846,-151.0,0.0001497,2]
[338268407,1726467039855,-260.073526,0.0001497,2]
[338268409,1726467039865,-260.073526,0.0001497,2]
[338268411,1726467039874,-151.0,0.0001497,2]
[338268413,1726467039884,-151.0,0.0001497,2]
[338268415,1726467039893,-153.171537,0.0001497,2]
[338268417,1726467039903,-259.55383,0.0001497,2]
[338268418,1726467039912,-259.55383,0.0001497,2]
[338268419,1726467039921,-170.2171647,0.00014973,2]
[338268421,1726467039930,-500.0,0.00014973,2]
[338268423,1726467039939,-545.62357753,0.00014973,2]
[338268425,1726467039949,-1120.37,0.00014973,2]
[338268427,1726467039958,-500.0,0.00014973,2]
[338268429,1726467039969,-544.56,0.00014973,2]
[338268431,1726467039978,-248.30508944,0.00014974,2]
[338268433,1726467039987,-500.0,0.00014974,2]
[338268434,1726467039997,-151.0,0.00014975,2]
[338268435,1726467040006,-331.011918,0.00014975,2]
[338268436,1726467040016,-331.011918,0.00014975,2]
[338268437,1726467040025,-963.43,0.00014975,2]
[338268438,1726467040034,-1959.91,0.00014975,2]
[338268439,1726467040043,-2788.14,0.00014975,2]
[338268440,1726467040053,-832.23,0.00014975,2]
[338268441,1726467040062,-2450.38,0.00014975,2]
[338268442,1726467040072,-194.36441957,0.00014975,2]
[338268443,1726467040081,-500.0,0.00014975,2]
[338268444,1726467040091,-151.0,0.00014976,2]
[338268445,1726467040100,-151.0,0.00014976,2]
[338268446,1726467040109,-151.0,0.00014976,2]
[338268447,1726467040119,-151.0,0.00014976,2]
[338268448,1726467040128,-151.0,0.00014976,2]
[338268449,1726467040138,-151.0,0.00014976,2]
[338268450,1726467040147,-151.0,0.00014976,2]
[338268451,1726467040156,-151.0,0.00014976,2]
[338268452,1726467040165,-152.633785,0.00014976,2]
[338268453,1726467040174,-80.19865092,0.00014976,2]
[338268454,1726467040186,-70.80134908,0.00014976,2]
[338268455,1726467040195,-151.0,0.00014976,2]
[338268457,1726467040205,-151.0,0.00014976,2]
[338268459,1726467040214,-151.0,0.00014976,2]
[338268461,1726467040224,-151.0,0.00014976,2]
[338268463,1726467040233,-151.0,0.00014976,2]
[338268465,1726467040242,-275.340766,0.00014976,2]
[338268466,1726467040252,-275.340766,0.00014976,2]
[338268467,1726467040260,-275.340766,0.00014976,2]
[338268469,1726467040270,-275.340766,0.00014976,2]
[338268471,1726467040279,-151.0,0.00014976,2]
[338268473,1726467040288,-151.0,0.00014976,2]
[338268475,1726467040298,-156.990454,0.00014976,2]
[338268477,1726467040307,-207.347159,0.00014976,2]
[338268479,1726467040317,-331.011918,0.00014976,2]
[338268481,1726467040326,-331.011918,0.00014976,2]
[338268483,1726467040335,-151.0,0.00014976,2]
[338268485,1726467040345,-151.0,0.00014976,2]
[338268487,1726467040358,-151.0,0.00014976,2]
[338268489,1726467040367,-151.0,0.00014976,2]
[338268491,1726467040376,-151.0,0.00014976,2]
[338268493,1726467040385,-151.0,0.00014976,2]
[338268495,1726467040394,-22.44872626,0.00014976,2]
[338268497,1726467040407,-128.55127374,0.00014976,2]
[338268499,1726467040416,-151.0,0.00014976,2]
[338268517,1726467040585,-189.847938,0.00014976,2]
[338268518,1726467040595,-151.0,0.00014976,2]
[338268521,1726467040604,-151.0,0.00014976,2]
[338268523,1726467040614,-257.796237,0.00014976,2]
[338268524,1726467040623,-14.44925122,0.00014976,2]
[338268527,1726467040635,-243.34698578,0.00014976,2]
[338268529,1726467040644,-291.221552,0.00014976,2]
[338268531,1726467040653,-9.52315992,0.00014976,2]
[338268533,1726467040664,-141.47684008,0.00014976,2]
[338268535,1726467040673,-151.0,0.00014976,2]
[338268537,1726467040683,-230.726978,0.00014976,2]
[338268539,1726467040692,-151.0,0.00014976,2]
[338268540,1726467040702,-34.87884404,0.00014976,2]
[338268543,1726467040714,-116.12115596,0.00014976,2]
[338268544,1726467040724,-151.0,0.00014976,2]
[338268546,1726467040733,-151.0,0.00014976,2]
[338268547,1726467040743,-241.167457,0.00014976,2]
[338268549,1726467040753,-151.0,0.00014976,2]
[338268551,1726467040762,-260.073526,0.00014976,2]
[338268553,1726467040771,-260.073526,0.00014976,2]
[338268555,1726467040781,-151.0,0.00014976,2]
[338268556,1726467040790,-151.0,0.00014976,2]
[338268557,1726467040799,-259.55383,0.00014976,2]
[338268558,1726467040808,-259.55383,0.00014976,2]
[338268559,1726467040817,-151.0,0.00014976,2]
[338268560,1726467040827,-151.0,0.00014976,2]
[338268561,1726467040836,-151.0,0.00014976,2]
[338268562,1726467040846,-151.0,0.00014976,2]
[338268563,1726467040855,-151.0,0.00014976,2]
[338268564,1726467040864,-365.392538,0.00014976,2]
[338268565,1726467040873,-365.392538,0.00014976,2]
[338268566,1726467040882,-310.280491,0.00014976,2]
[338268567,1726467040892,-2123.908115,0.00014976,2]
[338268568,1726467040901,-194.029693,0.00014976,2]
[338268569,1726467040911,-309.58773887,0.00014976,2]
[338268570,1726467040922,-0.69275213,0.00014976,2]
[338268571,1726467040931,-194.029693,0.00014976,2]
[338268572,1726467040942,-2123.908115,0.00014976,2]
[338268573,1726467040951,-1020.5571034,0.00014976,3]
[338268574,1726467040960,-151.0,0.00014978,2]
[338268575,1726467040971,-151.0,0.00014978,2]
[338268576,1726467040980,-151.0,0.00014978,2]
[338268577,1726467040989,-151.0,0.00014978,2]
[338268578,1726467040999,-169.650183,0.00014978,2]
[338268579,1726467041008,-169.650183,0.00014978,2]
[338268580,1726467041018,-463.45950684,0.00014978,2]
[338268581,1726467041029,-36.54049316,0.00014978,2]
[338268582,1726467041039,-151.0,0.00014978,2]
[338268583,1726467041048,-151.0,0.00014978,2]
[338268585,1726467041059,-151.0,0.00014978,2]
[338268587,1726467041069,-151.0,0.00014978,2]
[338268589,1726467041079,-151.0,0.00014978,2]
[338268591,1726467041088,-500.0,0.00014978,2]
[338268593,1726467041098,-151.0,0.00014978,2]
[338268595,1726467041107,-151.0,0.00014978,2]
[338268597,1726467041116,-151.0,0.00014978,2]
[338268599,1726467041126,-500.0,0.00014978,2]
[338268601,1726467041135,-500.0,0.00014978,2]
[338268603,1726467041145,-151.0,0.00014978,2]
[338268605,1726467041155,-500.0,0.00014978,2]
[338268607,1726467041165,-151.0,0.00014978,2]
[338268609,1726467041174,-151.0,0.00014978,2]
[338268611,1726467041183,-500.0,0.00014978,2]
[338268613,1726467041192,-500.0,0.00014978,2]
[338268615,1726467041202,-151.0,0.00014978,2]
[338268617,1726467041211,-500.0,0.00014978,2]
[338268619,1726467041221,-500.0,0.00014978,2]
[338268621,1726467041230,-500.0,0.00014978,2]
[338268623,1726467041238,-500.0,0.00014978,2]
[338268625,1726467041248,-500.0,0.00014978,2]
[338268627,1726467041257,-500.0,0.00014978,2]
[338268629,1726467041266,-209.77209287,0.00014978,2]
[338268631,1726467041275,-256.33770822,0.00014978,2]
[338268633,1726467041285,-500.0,0.00014978,2]
[338268635,1726467041294,-500.0,0.00014978,2]
[338268637,1726467041303,-500.0,0.00014978,2]
[338268639,1726467041312,-242.92970575,0.00014978,2]
[338268641,1726467041324,-257.07029425,0.00014978,2]
[338268643,1726467041333,-500.0,0.00014978,2]
[338268645,1726467041342,-151.0,0.00014978,2]
[338268647,1726467041353,-151.0,0.00014978,2]
[338268649,1726467041362,-108.49948772,0.00014978,2]
[338268651,1726467041373,-151.57403828,0.00014978,2]
[338268653,1726467041383,-260.073526,0.00014978,2]
[338268655,1726467041393,-1822.63550497,0.00014978,2]
[338268661,1726467041448,-2598.72449503,0.00014978,2]
[338268663,1726467041458,-234.99814497,0.00014978,2]
[338268666,1726467041470,-265.00185503,0.00014978,2]
[338268668,1726467041479,-500.0,0.00014978,2]
[338268670,1726467041488,-254.7223,0.00014978,2]
[338268672,1726467041498,-1415.96,0.00014978,2]
[338268674,1726467041508,-259.55383,0.00014978,2]
[338268676,1726467041518,-500.0,0.00014978,2]
[338268678,1726467041527,-709.98,0.00014978,2]
[338268680,1726467041536,-500.0,0.00014978,2]
[338268682,1726467041546,-259.55383,0.00014978,2]
[338268684,1726467041556,-500.0,0.00014978,2]
[338268686,1726467041565,-721.81702798,0.00014978,2]
[338268688,1726467041577,-869.68297202,0.00014978,2]
[338268690,1726467041586,-403.09461882,0.00014978,2]
[338268692,1726467041598,-96.90538118,0.00014978,2]
[338268694,1726467041607,-226.2093076,0.00014978,2]
[338268696,1726467041618,-273.7906924,0.00014978,2]
[338268698,1726467041628,-258.83743866,0.00014978,2]
[338268700,1726467041639,-241.16256134,0.00014978,2]
[338268702,1726467041649,-500.0,0.00014978,2]
[338268704,1726467041658,-433.17573146,0.00014978,2]
[338268707,1726467041669,-787.28426854,0.00014978,2]
[338268708,1726467041679,-2641.26,0.00014978,2]
[338268711,1726467041688,-500.0,0.00014978,2]
[338268713,1726467041698,-500.0,0.00014978,2]
[338268715,1726467041708,-500.0,0.00014978,2]
[338268716,1726467041718,-500.0,0.00014978,2]
[338268718,1726467041727,-1025.48,0.00014978,2]
[338268720,1726467041736,-500.0,0.00014978,2]
[338268722,1726467041745,-500.0,0.00014978,2]
[338268724,1726467041755,-500.0,0.00014978,2]
[338268726,1726467041764,-500.0,0.00014978,2]
[338268727,1726467041774,-500.0,0.00014978,2]
[338268729,1726467041783,-500.0,0.00014978,2]